[Event "Titled Tuesday Blitz August 15 Early 2023"]
[White "Kohler, Aran"]
[Black "Yashmetov, Mikhail"]
[WhiteFideId "1002856"]
[BlackFideId "24198900"]
[WhiteElo "2248"]
[BlackElo "2455"]
[Result "0-1"]
[Round "10"]
[TimeControl "180+1"]
[Date "2023.08.15"]
[WhiteClock "0:00:00"]
[BlackClock "0:00:06"]
[Board "134"]

1. d4 {[%clk 0:03:00]}  Nf6 {[%clk 0:02:56]} 2. c3 {[%clk 0:02:59]}  d5 {[%clk 0:02:56]} 3. Bg5 {[%clk 0:02:59]}  c5 {[%clk 0:02:56]} 4. e3 {[%clk 0:02:58]}  Bf5 {[%clk 0:02:53]} 5. Nd2 {[%clk 0:02:52]}  e6 {[%clk 0:02:50]} 6. Ngf3 {[%clk 0:02:40]}  Be7 {[%clk 0:02:50]} 7. Bb5+ {[%clk 0:02:39]}  Nbd7 {[%clk 0:02:49]} 8. Ne5 {[%clk 0:02:40]}  O-O {[%clk 0:02:47]} 9. Nxd7 {[%clk 0:02:38]}  Nxd7 {[%clk 0:02:48]} 10. Bxe7 {[%clk 0:02:36]}  Qxe7 {[%clk 0:02:49]} 11. O-O {[%clk 0:02:25]}  Nf6 {[%clk 0:02:49]} 12. Nf3 {[%clk 0:02:17]}  Ne4 {[%clk 0:02:46]} 13. Bd3 {[%clk 0:02:13]}  Qf6 {[%clk 0:02:37]} 14. Bxe4 {[%clk 0:02:09]}  Bxe4 {[%clk 0:02:36]} 15. Nd2 {[%clk 0:02:09]}  Bd3 {[%clk 0:02:33]} 16. Re1 {[%clk 0:02:09]}  b6 {[%clk 0:02:27]} 17. dxc5 {[%clk 0:02:06]}  bxc5 {[%clk 0:02:27]} 18. e4 {[%clk 0:02:06]}  Rab8 {[%clk 0:02:22]} 19. e5 {[%clk 0:02:05]}  Qg6 {[%clk 0:02:21]} 20. b3 {[%clk 0:02:04]}  Rfd8 {[%clk 0:02:11]} 21. Qf3 {[%clk 0:01:44]}  d4 {[%clk 0:02:01]} 22. cxd4 {[%clk 0:01:35]}  Rxd4 {[%clk 0:02:01]} 23. Rac1 {[%clk 0:01:31]}  Qg5 {[%clk 0:01:29]} 24. Nf1 {[%clk 0:01:18]}  Rd5 {[%clk 0:00:32]} 25. Ng3 {[%clk 0:01:10]}  Rbd8 {[%clk 0:00:25]} 26. Qe3 {[%clk 0:01:07]}  Qxe3 {[%clk 0:00:22]} 27. Rxe3 {[%clk 0:01:07]}  Ba6 {[%clk 0:00:20]} 28. h4 {[%clk 0:01:05]}  Rd1+ {[%clk 0:00:19]} 29. Rxd1 {[%clk 0:01:06]}  Rxd1+ {[%clk 0:00:20]} 30. Kh2 {[%clk 0:01:06]}  Rd2 {[%clk 0:00:21]} 31. Rc3 {[%clk 0:01:04]}  Rxf2 {[%clk 0:00:16]} 32. Rxc5 {[%clk 0:01:04]}  h6 {[%clk 0:00:14]} 33. Ra5 {[%clk 0:00:39]}  Bb7 {[%clk 0:00:14]} 34. Rxa7 {[%clk 0:00:39]}  Rxg2+ {[%clk 0:00:12]} 35. Kh3 {[%clk 0:00:39]}  Bf3 {[%clk 0:00:10]} 36. Ra8+ {[%clk 0:00:36]}  Kh7 {[%clk 0:00:10]} 37. Ra7 {[%clk 0:00:35]}  Kg8 {[%clk 0:00:04]} 38. Ra4 {[%clk 0:00:30]}  g6 {[%clk 0:00:04]} 39. Rf4 {[%clk 0:00:28]}  Bd5 {[%clk 0:00:04]} 40. Ne4 {[%clk 0:00:26]}  Rxa2 {[%clk 0:00:04]} 41. Nf6+ {[%clk 0:00:25]}  Kg7 {[%clk 0:00:05]} 42. Nxd5 {[%clk 0:00:22]}  exd5 {[%clk 0:00:05]} 43. Rd4 {[%clk 0:00:22]}  Rb2 {[%clk 0:00:04]} 44. b4 {[%clk 0:00:20]}  Kf8 {[%clk 0:00:04]} 45. Rxd5 {[%clk 0:00:17]}  Rxb4 {[%clk 0:00:04]} 46. Kg3 {[%clk 0:00:16]}  Ke7 {[%clk 0:00:04]} 47. Ra5 {[%clk 0:00:16]}  Ke6 {[%clk 0:00:04]} 48. Ra7 {[%clk 0:00:10]}  Rb5 {[%clk 0:00:04]} 49. Ra6+ {[%clk 0:00:09]}  Kxe5 {[%clk 0:00:04]} 50. h5 {[%clk 0:00:10]}  g5 {[%clk 0:00:03]} 51. Rxh6 {[%clk 0:00:09]}  f5 {[%clk 0:00:03]} 52. Rh8 {[%clk 0:00:09]}  Rb3+ {[%clk 0:00:04]} 53. Kf2 {[%clk 0:00:09]}  Kf4 {[%clk 0:00:04]} 54. h6 {[%clk 0:00:09]}  Rb2+ {[%clk 0:00:05]} 55. Ke1 {[%clk 0:00:09]}  Rh2 {[%clk 0:00:05]} 56. h7 {[%clk 0:00:09]}  g4 {[%clk 0:00:04]} 57. Kf1 {[%clk 0:00:09]}  g3 {[%clk 0:00:04]} 58. Kg1 {[%clk 0:00:09]}  Rh6 {[%clk 0:00:05]} 59. Kg2 {[%clk 0:00:07]}  Rh2+ {[%clk 0:00:04]} 60. Kg1 {[%clk 0:00:06]}  Kf3 {[%clk 0:00:02]} 61. Rf8 {[%clk 0:00:05]}  Rxh7 {[%clk 0:00:03]} 62. Rxf5+ {[%clk 0:00:05]}  Kg4 {[%clk 0:00:03]} 63. Ra5 {[%clk 0:00:05]}  Rb7 {[%clk 0:00:04]} 64. Ra3 {[%clk 0:00:02]}  Kh3 {[%clk 0:00:04]} 65. Ra1 {[%clk 0:00:02]}  Rb2 {[%clk 0:00:04]} 66. Rd1 {[%clk 0:00:02]}  Rg2+ {[%clk 0:00:05]} 67. Kh1 {[%clk 0:00:02]}  Rh2+ {[%clk 0:00:06]} 68. Kg1 {[%clk 0:00:00]}  Ra2 {[%clk 0:00:06]} 0-1


[Site "https://www.chess.com"]

[Event "Titled Tuesday Blitz August 15 Early 2023"]
[White "Tharushi, T H D Niklesha"]
[Black "Li, Hui"]
[WhiteFideId "9918264"]
[BlackFideId "15400310"]
[WhiteElo "2182"]
[BlackElo "2325"]
[Result "0-1"]
[Round "10"]
[TimeControl "180+1"]
[Date "2023.08.15"]
[WhiteClock "0:00:00"]
[BlackClock "0:00:09"]
[Board "139"]

1. e4 {[%clk 0:03:00]}  e5 {[%clk 0:02:58]} 2. Nf3 {[%clk 0:03:00]}  Nf6 {[%clk 0:02:55]} 3. Nxe5 {[%clk 0:02:59]}  d6 {[%clk 0:02:56]} 4. Nf3 {[%clk 0:02:59]}  Nxe4 {[%clk 0:02:56]} 5. Nc3 {[%clk 0:02:59]}  Nxc3 {[%clk 0:02:56]} 6. dxc3 {[%clk 0:03:00]}  Be7 {[%clk 0:02:57]} 7. Be3 {[%clk 0:03:00]}  Nc6 {[%clk 0:02:57]} 8. Bd3 {[%clk 0:03:01]}  Be6 {[%clk 0:02:58]} 9. Qd2 {[%clk 0:03:01]}  Qd7 {[%clk 0:02:58]} 10. Nd4 {[%clk 0:02:54]}  Nxd4 {[%clk 0:02:35]} 11. cxd4 {[%clk 0:02:55]}  d5 {[%clk 0:02:32]} 12. c3 {[%clk 0:02:52]}  Bf5 {[%clk 0:02:26]} 13. O-O {[%clk 0:02:44]}  O-O {[%clk 0:02:24]} 14. Rfe1 {[%clk 0:02:41]}  Bxd3 {[%clk 0:02:24]} 15. Qxd3 {[%clk 0:02:37]}  Bd6 {[%clk 0:02:24]} 16. Bd2 {[%clk 0:02:27]}  Rfe8 {[%clk 0:02:24]} 17. Qf3 {[%clk 0:02:27]}  c6 {[%clk 0:02:22]} 18. Bf4 {[%clk 0:02:25]}  Rxe1+ {[%clk 0:02:04]} 19. Rxe1 {[%clk 0:02:24]}  Re8 {[%clk 0:02:01]} 20. Re3 {[%clk 0:02:14]}  Bf8 {[%clk 0:01:45]} 21. Qe2 {[%clk 0:02:11]}  Rxe3 {[%clk 0:01:42]} 22. Qxe3 {[%clk 0:02:12]}  f6 {[%clk 0:01:24]} 23. h3 {[%clk 0:02:06]}  Kf7 {[%clk 0:01:24]} 24. g4 {[%clk 0:01:58]}  Qe6 {[%clk 0:01:18]} 25. Qxe6+ {[%clk 0:01:53]}  Kxe6 {[%clk 0:01:19]} 26. Kg2 {[%clk 0:01:54]}  g6 {[%clk 0:01:18]} 27. Kf3 {[%clk 0:01:54]}  f5 {[%clk 0:01:18]} 28. h4 {[%clk 0:01:42]}  fxg4+ {[%clk 0:01:11]} 29. Kxg4 {[%clk 0:01:43]}  h5+ {[%clk 0:01:05]} 30. Kg5 {[%clk 0:01:43]}  Kf7 {[%clk 0:01:05]} 31. Bb8 {[%clk 0:01:34]}  Be7+ {[%clk 0:01:01]} 32. Kf4 {[%clk 0:01:17]}  Bxh4 {[%clk 0:00:53]} 33. Kf3 {[%clk 0:01:06]}  a6 {[%clk 0:00:51]} 34. Bc7 {[%clk 0:01:05]}  Bf6 {[%clk 0:00:50]} 35. Kg3 {[%clk 0:01:04]}  Ke6 {[%clk 0:00:49]} 36. a4 {[%clk 0:00:58]}  Kf5 {[%clk 0:00:47]} 37. f3 {[%clk 0:00:58]}  b5 {[%clk 0:00:42]} 38. axb5 {[%clk 0:00:57]}  axb5 {[%clk 0:00:41]} 39. Bd6 {[%clk 0:00:54]}  Bg5 {[%clk 0:00:33]} 40. f4 {[%clk 0:00:54]}  Bh6 {[%clk 0:00:33]} 41. Kf3 {[%clk 0:00:50]}  Bg7 {[%clk 0:00:27]} 42. Be5 {[%clk 0:00:41]}  Bf8 {[%clk 0:00:24]} 43. Kg3 {[%clk 0:00:38]}  Be7 {[%clk 0:00:22]} 44. b3 {[%clk 0:00:35]}  g5 {[%clk 0:00:20]} 45. Kf3 {[%clk 0:00:33]}  g4+ {[%clk 0:00:19]} 46. Kg3 {[%clk 0:00:34]}  h4+ {[%clk 0:00:18]} 47. Kg2 {[%clk 0:00:32]}  Ke4 {[%clk 0:00:18]} 48. Kf2 {[%clk 0:00:27]}  Bd8 {[%clk 0:00:14]} 49. Ke2 {[%clk 0:00:25]}  h3 {[%clk 0:00:13]} 50. Kf2 {[%clk 0:00:25]}  Bh4+ {[%clk 0:00:13]} 51. Kg1 {[%clk 0:00:25]}  Bg3 {[%clk 0:00:09]} 52. Kh1 {[%clk 0:00:21]}  Bxf4 {[%clk 0:00:09]} 53. Bf6 {[%clk 0:00:18]}  g3 {[%clk 0:00:09]} 54. Kg1 {[%clk 0:00:00]}  Be3+ {[%clk 0:00:09]} 0-1


[Site "https://www.chess.com"]

[Event "Titled Tuesday Blitz August 15 Early 2023"]
[White "Sava, Christiansen-Danut-Eugen"]
[Black "Iunusovnuriddin"]
[WhiteFideId "1210114"]
[WhiteElo "2152"]
[BlackElo "2307"]
[Result "1-0"]
[Round "10"]
[TimeControl "180+1"]
[Date "2023.08.15"]
[WhiteClock "0:01:56"]
[BlackClock "0:00:26"]
[Board "142"]

1. d4 {[%clk 0:03:00]}  Nf6 {[%clk 0:02:43]} 2. c4 {[%clk 0:02:58]}  g6 {[%clk 0:02:41]} 3. Nc3 {[%clk 0:02:55]}  Bg7 {[%clk 0:02:42]} 4. e4 {[%clk 0:02:49]}  d6 {[%clk 0:02:42]} 5. f4 {[%clk 0:02:45]}  O-O {[%clk 0:02:42]} 6. Nf3 {[%clk 0:02:42]}  c5 {[%clk 0:02:42]} 7. d5 {[%clk 0:02:42]}  e6 {[%clk 0:02:43]} 8. Be2 {[%clk 0:02:39]}  exd5 {[%clk 0:02:43]} 9. cxd5 {[%clk 0:02:36]}  b5 {[%clk 0:02:42]} 10. e5 {[%clk 0:02:35]}  dxe5 {[%clk 0:02:13]} 11. fxe5 {[%clk 0:02:36]}  Ng4 {[%clk 0:02:11]} 12. Bxb5 {[%clk 0:02:34]}  Nxe5 {[%clk 0:02:08]} 13. O-O {[%clk 0:02:33]}  Bg4 {[%clk 0:01:52]} 14. Be2 {[%clk 0:02:32]}  Nbd7 {[%clk 0:01:34]} 15. Nxe5 {[%clk 0:02:31]}  Bxe2 {[%clk 0:01:34]} 16. Qxe2 {[%clk 0:02:31]}  Nxe5 {[%clk 0:01:34]} 17. Bf4 {[%clk 0:02:31]}  Re8 {[%clk 0:01:33]} 18. Kh1 {[%clk 0:02:27]}  Nc6 {[%clk 0:01:15]} 19. Qg4 {[%clk 0:02:25]}  Nd4 {[%clk 0:01:15]} 20. Rae1 {[%clk 0:02:23]}  Qc8 {[%clk 0:01:07]} 21. Qxc8 {[%clk 0:02:12]}  Raxc8 {[%clk 0:01:07]} 22. d6 {[%clk 0:02:12]}  Red8 {[%clk 0:00:53]} 23. Nd5 {[%clk 0:02:11]}  Bf8 {[%clk 0:00:47]} 24. d7 {[%clk 0:02:02]}  Rc6 {[%clk 0:00:44]} 25. Re8 {[%clk 0:01:57]}  Rxd7 {[%clk 0:00:41]} 26. Bh6 {[%clk 0:01:57]}  Ne6 {[%clk 0:00:30]} 27. Nf6+ {[%clk 0:01:56]}  Kh8 {[%clk 0:00:26]} 28. Nxd7 {[%clk 0:01:56]} 1-0


[Site "https://www.chess.com"]

[Event "Titled Tuesday Blitz August 15 Early 2023"]
[White "Kriti Mayur Patel"]
[Black "Preobrazhenska_D2011"]
[WhiteFideId "35061780"]
[WhiteElo "2085"]
[BlackElo "2297"]
[Result "0-1"]
[Round "10"]
[TimeControl "180+1"]
[Date "2023.08.15"]
[WhiteClock "0:00:14"]
[BlackClock "0:00:09"]
[Board "143"]

1. e4 {[%clk 0:03:00]}  c5 {[%clk 0:03:00]} 2. d4 {[%clk 0:03:00]}  cxd4 {[%clk 0:03:00]} 3. c3 {[%clk 0:03:01]}  dxc3 {[%clk 0:02:59]} 4. Nxc3 {[%clk 0:03:02]}  Nc6 {[%clk 0:02:58]} 5. Nf3 {[%clk 0:03:02]}  d6 {[%clk 0:02:54]} 6. Bc4 {[%clk 0:03:03]}  e6 {[%clk 0:02:54]} 7. O-O {[%clk 0:03:02]}  Nf6 {[%clk 0:02:54]} 8. Qe2 {[%clk 0:03:03]}  Be7 {[%clk 0:02:53]} 9. Rd1 {[%clk 0:03:03]}  Qc7 {[%clk 0:02:41]} 10. Nb5 {[%clk 0:02:51]}  Qb8 {[%clk 0:02:42]} 11. Bf4 {[%clk 0:02:49]}  e5 {[%clk 0:02:38]} 12. Bg5 {[%clk 0:02:47]}  a6 {[%clk 0:02:21]} 13. Bxf6 {[%clk 0:02:32]}  gxf6 {[%clk 0:02:16]} 14. Nc3 {[%clk 0:02:31]}  Bg4 {[%clk 0:01:53]} 15. Nd5 {[%clk 0:02:16]}  Nd4 {[%clk 0:01:36]} 16. Qe3 {[%clk 0:02:00]}  Bxf3 {[%clk 0:01:15]} 17. gxf3 {[%clk 0:02:00]}  Nc2 {[%clk 0:01:05]} 18. Qh6 {[%clk 0:01:39]}  Nxa1 {[%clk 0:00:42]} 19. Qg7 {[%clk 0:01:24]}  Rf8 {[%clk 0:00:29]} 20. Rxa1 {[%clk 0:01:19]}  b5 {[%clk 0:00:27]} 21. Bb3 {[%clk 0:01:16]}  Kd7 {[%clk 0:00:21]} 22. Nxf6+ {[%clk 0:01:04]}  Bxf6 {[%clk 0:00:20]} 23. Qxf6 {[%clk 0:01:05]}  Qd8 {[%clk 0:00:16]} 24. Qf5+ {[%clk 0:01:01]}  Kc7 {[%clk 0:00:17]} 25. Bxf7 {[%clk 0:00:57]}  Qe7 {[%clk 0:00:14]} 26. Rc1+ {[%clk 0:00:56]}  Kb6 {[%clk 0:00:14]} 27. Qe6 {[%clk 0:00:38]}  Qg5+ {[%clk 0:00:10]} 28. Kf1 {[%clk 0:00:32]}  Qxc1+ {[%clk 0:00:11]} 29. Ke2 {[%clk 0:00:33]}  Qxb2+ {[%clk 0:00:10]} 30. Ke3 {[%clk 0:00:30]}  Qc3+ {[%clk 0:00:10]} 31. Ke2 {[%clk 0:00:30]}  Qc4+ {[%clk 0:00:10]} 32. Qxc4 {[%clk 0:00:30]}  bxc4 {[%clk 0:00:11]} 33. Bxc4 {[%clk 0:00:30]}  Kc5 {[%clk 0:00:12]} 34. Bd5 {[%clk 0:00:31]}  Rab8 {[%clk 0:00:12]} 35. Kd3 {[%clk 0:00:31]}  Rb2 {[%clk 0:00:13]} 36. Ke3 {[%clk 0:00:32]}  Rfb8 {[%clk 0:00:10]} 37. h4 {[%clk 0:00:31]}  R8b4 {[%clk 0:00:09]} 38. h5 {[%clk 0:00:31]}  Rd4 {[%clk 0:00:09]} 39. h6 {[%clk 0:00:29]}  Rbd2 {[%clk 0:00:09]} 40. f4 {[%clk 0:00:14]}  R4d3# {[%clk 0:00:09]} 0-1


[Site "https://www.chess.com"]

[Event "Titled Tuesday Blitz August 15 Early 2023"]
[White "Martin, Lewis"]
[Black "Stangl, Anita, Dr."]
[WhiteFideId "410551"]
[BlackFideId "4608801"]
[WhiteElo "2286"]
[BlackElo "2125"]
[Result "1-0"]
[Round "10"]
[TimeControl "180+1"]
[Date "2023.08.15"]
[WhiteClock "0:00:10"]
[BlackClock "0:00:46"]
[Board "144"]

1. e4 {[%clk 0:03:00]}  e6 {[%clk 0:02:59]} 2. d4 {[%clk 0:02:57]}  d5 {[%clk 0:02:59]} 3. Nd2 {[%clk 0:02:57]}  Nf6 {[%clk 0:02:58]} 4. e5 {[%clk 0:02:57]}  Nfd7 {[%clk 0:02:58]} 5. f4 {[%clk 0:02:58]}  c5 {[%clk 0:02:59]} 6. c3 {[%clk 0:02:58]}  Nc6 {[%clk 0:02:59]} 7. Ndf3 {[%clk 0:02:57]}  Qb6 {[%clk 0:02:59]} 8. Ne2 {[%clk 0:02:57]}  cxd4 {[%clk 0:02:59]} 9. cxd4 {[%clk 0:02:57]}  f6 {[%clk 0:03:00]} 10. g3 {[%clk 0:02:48]}  Bb4+ {[%clk 0:02:55]} 11. Bd2 {[%clk 0:02:40]}  g5 {[%clk 0:02:43]} 12. Bh3 {[%clk 0:02:23]}  gxf4 {[%clk 0:02:28]} 13. gxf4 {[%clk 0:02:16]}  fxe5 {[%clk 0:02:24]} 14. fxe5 {[%clk 0:02:15]}  O-O {[%clk 0:02:19]} 15. Bxe6+ {[%clk 0:02:07]}  Kh8 {[%clk 0:02:19]} 16. Bxd5 {[%clk 0:02:08]}  Ncxe5 {[%clk 0:02:15]} 17. O-O {[%clk 0:01:34]}  Nxf3+ {[%clk 0:02:06]} 18. Rxf3 {[%clk 0:01:33]}  Rxf3 {[%clk 0:01:53]} 19. Bxf3 {[%clk 0:01:33]}  Qg6+ {[%clk 0:01:51]} 20. Kh1 {[%clk 0:01:28]}  Qd3 {[%clk 0:01:44]} 21. Bxb4 {[%clk 0:01:15]}  Qxf3+ {[%clk 0:01:44]} 22. Kg1 {[%clk 0:01:15]}  Nf6 {[%clk 0:01:41]} 23. Ng3 {[%clk 0:01:02]}  Qe3+ {[%clk 0:01:40]} 24. Kg2 {[%clk 0:01:00]}  Bg4 {[%clk 0:01:39]} 25. Qb3 {[%clk 0:00:52]}  Bf3+ {[%clk 0:01:27]} 26. Kf1 {[%clk 0:00:45]}  Qf4 {[%clk 0:01:26]} 27. Bd6 {[%clk 0:00:34]}  Qg4 {[%clk 0:01:10]} 28. Be5 {[%clk 0:00:22]}  Rf8 {[%clk 0:01:09]} 29. Kf2 {[%clk 0:00:16]}  Bc6 {[%clk 0:01:04]} 30. Rf1 {[%clk 0:00:13]}  h5 {[%clk 0:00:56]} 31. Kg1 {[%clk 0:00:12]}  Kh7 {[%clk 0:00:56]} 32. Rxf6 {[%clk 0:00:11]}  Rxf6 {[%clk 0:00:55]} 33. Bxf6 {[%clk 0:00:11]}  h4 {[%clk 0:00:55]} 34. Qf7+ {[%clk 0:00:11]}  Kh6 {[%clk 0:00:53]} 35. Qg7+ {[%clk 0:00:09]}  Qxg7 {[%clk 0:00:52]} 36. Bxg7+ {[%clk 0:00:09]}  Kxg7 {[%clk 0:00:53]} 37. Nf5+ {[%clk 0:00:10]}  Kf6 {[%clk 0:00:52]} 38. Nxh4 {[%clk 0:00:11]}  Bd5 {[%clk 0:00:52]} 39. a3 {[%clk 0:00:09]}  Kg5 {[%clk 0:00:52]} 40. Ng2 {[%clk 0:00:08]}  Kg4 {[%clk 0:00:51]} 41. Kf2 {[%clk 0:00:09]}  Kf5 {[%clk 0:00:50]} 42. Ne3+ {[%clk 0:00:09]}  Ke4 {[%clk 0:00:50]} 43. Nxd5 {[%clk 0:00:09]}  Kxd5 {[%clk 0:00:51]} 44. Ke3 {[%clk 0:00:10]}  b5 {[%clk 0:00:51]} 45. h4 {[%clk 0:00:10]}  a5 {[%clk 0:00:52]} 46. h5 {[%clk 0:00:11]}  b4 {[%clk 0:00:52]} 47. axb4 {[%clk 0:00:10]}  axb4 {[%clk 0:00:51]} 48. h6 {[%clk 0:00:11]}  Kc4 {[%clk 0:00:52]} 49. h7 {[%clk 0:00:11]}  Kb3 {[%clk 0:00:52]} 50. h8=Q {[%clk 0:00:12]}  Kxb2 {[%clk 0:00:53]} 51. d5+ {[%clk 0:00:12]}  Ka2 {[%clk 0:00:52]} 52. Kd2 {[%clk 0:00:13]}  b3 {[%clk 0:00:53]} 53. Kc1 {[%clk 0:00:13]}  Ka3 {[%clk 0:00:52]} 54. Qe8 {[%clk 0:00:11]}  Kb4 {[%clk 0:00:52]} 55. Kb2 {[%clk 0:00:11]}  Kc4 {[%clk 0:00:46]} 56. Qa4+ {[%clk 0:00:10]} 1-0


[Site "https://www.chess.com"]

[Event "Titled Tuesday Blitz August 15 Early 2023"]
[White "slimshady"]
[Black "Navyblue1"]
[WhiteElo "2280"]
[BlackElo "1981"]
[Result "0-1"]
[Round "10"]
[TimeControl "180+1"]
[Date "2023.08.15"]
[WhiteClock "0:00:53"]
[BlackClock "0:00:30"]
[Board "145"]

1. e4 {[%clk 0:03:00]}  c5 {[%clk 0:02:43]} 2. Nf3 {[%clk 0:03:00]}  d6 {[%clk 0:02:38]} 3. d4 {[%clk 0:02:58]}  cxd4 {[%clk 0:02:37]} 4. Nxd4 {[%clk 0:02:59]}  Nf6 {[%clk 0:02:37]} 5. Nc3 {[%clk 0:02:58]}  a6 {[%clk 0:02:35]} 6. h3 {[%clk 0:02:56]}  e5 {[%clk 0:02:34]} 7. Nb3 {[%clk 0:02:55]}  Be6 {[%clk 0:02:32]} 8. f4 {[%clk 0:02:50]}  exf4 {[%clk 0:02:26]} 9. Bxf4 {[%clk 0:02:49]}  Nc6 {[%clk 0:02:25]} 10. Be2 {[%clk 0:02:48]}  Ne5 {[%clk 0:02:23]} 11. O-O {[%clk 0:02:40]}  Be7 {[%clk 0:02:19]} 12. Kh1 {[%clk 0:02:20]}  O-O {[%clk 0:02:16]} 13. Nd4 {[%clk 0:02:03]}  Qc8 {[%clk 0:02:02]} 14. Nxe6 {[%clk 0:01:56]}  Qxe6 {[%clk 0:01:58]} 15. Bxe5 {[%clk 0:01:49]}  dxe5 {[%clk 0:01:56]} 16. Qe1 {[%clk 0:01:43]}  Bb4 {[%clk 0:01:51]} 17. a3 {[%clk 0:01:43]}  Bxc3 {[%clk 0:01:50]} 18. Qxc3 {[%clk 0:01:41]}  Nxe4 {[%clk 0:01:48]} 19. Qf3 {[%clk 0:01:40]}  Nf6 {[%clk 0:01:45]} 20. Qg3 {[%clk 0:01:36]}  Rac8 {[%clk 0:01:38]} 21. c3 {[%clk 0:01:33]}  Rfe8 {[%clk 0:01:29]} 22. Rad1 {[%clk 0:01:26]}  Rcd8 {[%clk 0:01:23]} 23. Qe3 {[%clk 0:01:17]}  Rxd1 {[%clk 0:01:20]} 24. Rxd1 {[%clk 0:01:15]}  Qc6 {[%clk 0:01:11]} 25. Bf3 {[%clk 0:01:12]}  e4 {[%clk 0:01:09]} 26. Be2 {[%clk 0:01:11]}  h6 {[%clk 0:01:06]} 27. c4 {[%clk 0:01:10]}  Qe6 {[%clk 0:00:49]} 28. b4 {[%clk 0:01:07]}  Qc6 {[%clk 0:00:37]} 29. b5 {[%clk 0:01:03]}  axb5 {[%clk 0:00:37]} 30. cxb5 {[%clk 0:01:03]}  Qc2 {[%clk 0:00:32]} 31. Rd7 {[%clk 0:00:53]}  Nxd7 {[%clk 0:00:30]} 0-1


[Site "https://www.chess.com"]

[Event "Titled Tuesday Blitz August 15 Early 2023"]
[White "Wilson, Otis"]
[Black "Baghdasaryan, Vahe"]
[WhiteFideId "30904021"]
[BlackFideId "13303139"]
[WhiteElo "1996"]
[BlackElo "2403"]
[Result "1-0"]
[Round "10"]
[TimeControl "180+1"]
[Date "2023.08.15"]
[WhiteClock "0:00:03"]
[BlackClock "0:00:09"]
[Board "146"]

1. d4 {[%clk 0:03:00]}  d5 {[%clk 0:03:00]} 2. c4 {[%clk 0:03:00]}  e6 {[%clk 0:03:00]} 3. Nc3 {[%clk 0:03:00]}  Be7 {[%clk 0:03:00]} 4. e3 {[%clk 0:03:00]}  Nf6 {[%clk 0:03:00]} 5. Nge2 {[%clk 0:03:01]}  O-O {[%clk 0:03:00]} 6. Ng3 {[%clk 0:03:01]}  b6 {[%clk 0:03:00]} 7. b3 {[%clk 0:02:57]}  Bb7 {[%clk 0:03:00]} 8. Bb2 {[%clk 0:02:55]}  Nbd7 {[%clk 0:02:57]} 9. Bd3 {[%clk 0:02:55]}  c5 {[%clk 0:02:56]} 10. cxd5 {[%clk 0:02:43]}  Nxd5 {[%clk 0:02:52]} 11. Nxd5 {[%clk 0:02:35]}  Bxd5 {[%clk 0:02:53]} 12. O-O {[%clk 0:02:35]}  g6 {[%clk 0:02:44]} 13. Qd2 {[%clk 0:02:22]}  Bf6 {[%clk 0:02:28]} 14. Ne4 {[%clk 0:02:20]}  Bg7 {[%clk 0:02:24]} 15. dxc5 {[%clk 0:02:17]}  Bxb2 {[%clk 0:02:09]} 16. Qxb2 {[%clk 0:02:18]}  bxc5 {[%clk 0:02:02]} 17. Rfd1 {[%clk 0:02:11]}  Qe7 {[%clk 0:01:57]} 18. Bb5 {[%clk 0:01:45]}  Bxe4 {[%clk 0:01:39]} 19. Rxd7 {[%clk 0:01:45]}  Qg5 {[%clk 0:01:38]} 20. f4 {[%clk 0:01:33]}  Qh6 {[%clk 0:01:29]} 21. Rad1 {[%clk 0:01:21]}  a6 {[%clk 0:01:12]} 22. Bc4 {[%clk 0:01:21]}  g5 {[%clk 0:01:09]} 23. Qe5 {[%clk 0:01:17]}  Bf5 {[%clk 0:00:58]} 24. e4 {[%clk 0:01:11]}  Bg4 {[%clk 0:00:53]} 25. fxg5 {[%clk 0:01:05]}  Qh5 {[%clk 0:00:25]} 26. R1d2 {[%clk 0:01:03]}  Qh4 {[%clk 0:00:20]} 27. g3 {[%clk 0:00:57]}  Qh3 {[%clk 0:00:19]} 28. Qxc5 {[%clk 0:00:38]}  Rac8 {[%clk 0:00:16]} 29. Qe5 {[%clk 0:00:25]}  Bf3 {[%clk 0:00:15]} 30. Qf4 {[%clk 0:00:18]}  Qh5 {[%clk 0:00:12]} 31. Rf2 {[%clk 0:00:13]}  Bg4 {[%clk 0:00:10]} 32. Qd6 {[%clk 0:00:09]}  Bh3 {[%clk 0:00:09]} 33. Rf4 {[%clk 0:00:09]}  Qxg5 {[%clk 0:00:06]} 34. e5 {[%clk 0:00:04]}  Bf5 {[%clk 0:00:03]} 35. Qd4 {[%clk 0:00:03]}  Qg6 {[%clk 0:00:04]} 36. Qf2 {[%clk 0:00:03]}  h6 {[%clk 0:00:04]} 37. h4 {[%clk 0:00:03]}  h5 {[%clk 0:00:04]} 38. Kh2 {[%clk 0:00:04]}  Bg4 {[%clk 0:00:05]} 39. Rf6 {[%clk 0:00:04]}  Bf5 {[%clk 0:00:06]} 40. Rxg6+ {[%clk 0:00:04]}  fxg6 {[%clk 0:00:06]} 41. Qe3 {[%clk 0:00:04]}  Rf7 {[%clk 0:00:06]} 42. Rxf7 {[%clk 0:00:04]}  Kxf7 {[%clk 0:00:07]} 43. Qg5 {[%clk 0:00:04]}  Re8 {[%clk 0:00:08]} 44. Qf6+ {[%clk 0:00:05]}  Kg8 {[%clk 0:00:08]} 45. Bxa6 {[%clk 0:00:04]}  Ra8 {[%clk 0:00:07]} 46. Bc4 {[%clk 0:00:03]}  Rxa2+ {[%clk 0:00:08]} 47. Kg1 {[%clk 0:00:03]}  Ra7 {[%clk 0:00:09]} 48. Bxe6+ {[%clk 0:00:02]}  Rf7 {[%clk 0:00:09]} 49. Bxf7+ {[%clk 0:00:02]}  Kf8 {[%clk 0:00:09]} 50. Bxg6+ {[%clk 0:00:02]}  Kg8 {[%clk 0:00:08]} 51. Qf7+ {[%clk 0:00:03]}  Kh8 {[%clk 0:00:09]} 52. Qh7# {[%clk 0:00:03]} 1-0


[Site "https://www.chess.com"]

[Event "Titled Tuesday Blitz August 15 Early 2023"]
[White "Buscar, Michael"]
[Black "Kula, Robert"]
[WhiteFideId "2603616"]
[BlackFideId "1101218"]
[WhiteElo "2381"]
[BlackElo "2235"]
[Result "0-1"]
[Round "10"]
[TimeControl "180+1"]
[Date "2023.08.15"]
[WhiteClock "0:00:00"]
[BlackClock "0:00:57"]
[Board "147"]

1. Nf3 {[%clk 0:02:14]}  d5 {[%clk 0:02:16]} 2. c4 {[%clk 0:02:10]}  dxc4 {[%clk 0:02:14]} 3. Qa4+ {[%clk 0:02:09]}  Nc6 {[%clk 0:02:13]} 4. Qxc4 {[%clk 0:02:09]}  Be6 {[%clk 0:02:14]} 5. Qc2 {[%clk 0:02:08]}  Nf6 {[%clk 0:02:11]} 6. g3 {[%clk 0:02:08]}  g6 {[%clk 0:02:11]} 7. Bg2 {[%clk 0:02:08]}  Bg7 {[%clk 0:02:11]} 8. O-O {[%clk 0:02:08]}  O-O {[%clk 0:02:12]} 9. d3 {[%clk 0:02:01]}  Nb4 {[%clk 0:02:06]} 10. Qa4 {[%clk 0:02:00]}  a5 {[%clk 0:02:04]} 11. a3 {[%clk 0:01:59]}  Nbd5 {[%clk 0:01:48]} 12. Bd2 {[%clk 0:01:51]}  Nb6 {[%clk 0:01:44]} 13. Qh4 {[%clk 0:01:49]}  c6 {[%clk 0:01:33]} 14. Bh6 {[%clk 0:01:46]}  a4 {[%clk 0:01:27]} 15. Ng5 {[%clk 0:01:44]}  Bd5 {[%clk 0:01:15]} 16. e4 {[%clk 0:01:41]}  Bb3 {[%clk 0:01:14]} 17. Bxg7 {[%clk 0:01:35]}  Kxg7 {[%clk 0:01:14]} 18. e5 {[%clk 0:01:36]}  Nh5 {[%clk 0:01:13]} 19. g4 {[%clk 0:01:36]}  f6 {[%clk 0:01:10]} 20. Nxh7 {[%clk 0:01:16]}  Kxh7 {[%clk 0:01:08]} 21. gxh5 {[%clk 0:01:14]}  g5 {[%clk 0:01:07]} 22. Qe4+ {[%clk 0:00:50]}  f5 {[%clk 0:01:07]} 23. Qe3 {[%clk 0:00:50]}  e6 {[%clk 0:01:06]} 24. Nd2 {[%clk 0:00:47]}  Bd5 {[%clk 0:01:02]} 25. Nf3 {[%clk 0:00:26]}  f4 {[%clk 0:01:00]} 26. Qd2 {[%clk 0:00:19]}  g4 {[%clk 0:01:00]} 27. Ne1 {[%clk 0:00:16]}  f3 {[%clk 0:01:00]} 28. Bh1 {[%clk 0:00:15]}  Qh4 {[%clk 0:00:59]} 29. d4 {[%clk 0:00:13]}  Qxh5 {[%clk 0:00:59]} 30. Qc2+ {[%clk 0:00:09]}  Kg7 {[%clk 0:00:59]} 31. Nd3 {[%clk 0:00:00]}  Rh8 {[%clk 0:00:57]} 0-1


[Site "https://www.chess.com"]